bitfinex/quotes_SOLUSD_20251031
["timestamp","ask_amount","ask_price","bid_price","bid_amount"]
[1761924769388,8.11612237,189.09,189.06,13.22318209]
[1761924769389,8.11612237,189.1,189.06,13.22318209]
[1761924769855,8.11612237,189.09,189.06,13.22318209]
[1761924771085,8.81612237,189.09,189.06,13.22318209]
[1761924771874,8.11612237,189.08,189.06,13.22318209]
[1761924772050,0.7,189.11,189.06,13.22318209]
[1761924772252,8.11612237,189.09,189.06,13.22318209]
[1761924772653,8.81612237,189.09,189.06,13.22318209]
[1761924773361,8.11612237,189.09,189.06,13.22318209]
[1761924773680,8.81612237,189.09,189.06,13.22318209]
[1761924774260,8.11612237,189.09,189.06,13.22318209]
[1761924774780,0.7,189.11,189.06,13.22318209]
[1761924774781,8.11612237,189.1,189.06,13.22318209]
[1761924775150,8.81612237,189.1,189.06,13.22318209]
[1761924775348,8.11612237,189.09,189.06,13.22318209]
[1761924775784,8.81612237,189.09,189.06,13.22318209]
[1761924776083,8.11612237,189.07,189.05,5.28960592]
[1761924776942,8.11612237,189.07,189.04,28.5877509]
[1761924777348,0.71,189.11,189.05,0.66]
[1761924777547,0.71,189.11,189.04,28.5877509]
[1761924777548,8.11612237,189.08,189.04,28.5877509]
[1761924777776,8.11612237,189.09,189.04,29.2477509]
[1761924778168,8.82612237,189.09,189.04,29.2477509]
[1761924778372,8.11612237,189.08,189.04,29.2477509]
[1761924778569,8.11612237,189.08,189.05,0.66]
[1761924778823,8.82612237,189.09,189.05,0.66]
[1761924779079,8.82612237,189.09,189.06,18.51264147]
[1761924779658,5.2871505,189.14,189.06,18.51264147]
[1761924779865,8.11612237,189.1,189.06,19.17264147]
[1761924780069,8.11612237,189.1,189.07,0.66]
[1761924780386,1.99999999,189.23,189.07,0.66]
[1761924780387,0.71,189.14,189.07,9.06044551]
[1761924780559,8.11612237,189.14,189.09,8.11612237]
[1761924780761,8.82612237,189.14,189.08,10.44882769]
[1761924781059,8.82612237,189.14,189.1,18.50872553]
[1761924781580,122.692,189.2,189.1,18.50872553]
[1761924781754,8.11612237,189.15,189.11,0.66]
[1761924781954,8.11612237,189.16,189.11,0.66]
[1761924782373,8.82612237,189.16,189.11,0.66]
[1761924782978,8.82612237,189.16,189.12,18.50676818]
[1761924783180,8.82612237,189.18,189.12,26.62289055]
[1761924783484,8.82612237,189.18,189.12,27.28289055]
[1761924783653,8.82612237,189.18,189.13,0.66]
[1761924783856,0.71,189.18,189.13,0.66]
[1761924784081,0.71,189.18,189.13,8.77612237]
[1761924784881,0.71,189.18,189.14,18.50481124]
[1761924785186,8.11612237,189.15,189.11,9.78882769]
[1761924785384,5.99606067,189.18,189.09,26.62528379]
[1761924785687,8.11612237,189.15,189.09,27.28528379]
[1761924786063,8.11612237,189.13,189.09,18.50916142]
[1761924786457,8.11612237,189.13,189.09,19.16916142]
[1761924787894,0.71,189.16,189.1,0.66]
[1761924788095,12.06860579,189.15,189.1,0.66]
[1761924788387,0.71,189.16,189.1,0.66]
[1761924788388,8.82612237,189.16,189.11,17.90495006]
[1761924788565,8.11612237,189.15,189.11,9.78882769]
[1761924788760,8.11612237,189.14,189.09,18.79348456]
[1761924788958,8.11612237,189.12,189.09,5.28848696]
[1761924789163,8.11612237,189.11,189.07,18.51163113]
[1761924789479,8.11612237,189.1,189.07,18.51163113]
[1761924789989,0.71,189.09,189.07,18.51163113]
[1761924790288,8.82612237,189.1,189.07,5.28904638]
[1761924790987,8.11612237,189.11,189.08,0.66]
[1761924791292,8.11612237,189.12,189.09,5.28848696]
[1761924791665,0.71,189.11,189.09,5.28848696]
[1761924791862,0.71,189.12,189.09,18.50970436]
[1761924792062,8.11612237,189.12,189.09,18.50970436]
[1761924792389,8.82612237,189.11,189.09,5.28848696]
[1761924792961,0.71,189.11,189.09,5.28848696]
[1761924793187,0.71,189.11,189.07,5.28904638]
[1761924793392,6.05322103,189.1,189.07,5.28904638]
[1761924793690,5.34322103,189.08,189.05,5.28960592]
[1761924793864,5.34322103,189.07,189.05,5.28960592]
[1761924794191,5.34322103,189.08,189.05,5.28960592]
[1761924794389,0.71,189.11,189.05,5.28960592]
[1761924794564,5.28766374,189.12,189.05,5.28960592]
[1761924794565,5.34322103,189.08,189.05,5.28960592]
[1761924794871,0.71,189.1,189.05,5.28960592]
[1761924795062,5.34322103,189.08,189.05,5.28960592]
[1761924795264,0.71,189.09,189.04,18.51397463]
[1761924795470,5.34322103,189.08,189.04,18.51397463]
[1761924795684,5.34322103,189.08,189.05,0.66]
[1761924795888,5.34322103,189.1,189.05,0.94432314]
[1761924796073,0.71,189.11,189.05,6.28754417]
[1761924796074,6.05322103,189.11,189.05,6.28754417]
[1761924796592,5.34322103,189.1,189.05,6.28754417]
[1761924796968,5.34322103,189.1,189.06,18.51264147]
[1761924797181,6.05322103,189.1,189.06,18.51264147]
[1761924798076,6.01322103,189.1,189.06,18.51264147]
[1761924798592,5.34322103,189.09,189.06,18.51264147]
[1761924799096,6.01322103,189.1,189.06,18.51264147]
[1761924799389,5.34322103,189.11,189.06,19.20264147]
[1761924799593,5.34322103,189.13,189.07,6.03322103]
[1761924799783,5.34322103,189.13,189.08,0.69]
[1761924799984,5.34322103,189.12,189.06,24.5458625]
[1761924800180,0.67,189.12,189.06,19.20264147]
[1761924800381,0.67,189.14,189.08,10.07315083]
[1761924800713,6.01322103,189.14,189.08,15.41637186]
[1761924800874,5.34322103,189.11,189.07,10.07315083]
[1761924801197,5.34322103,189.11,189.07,5.57328321]
[1761924801402,0.67,189.11,189.07,5.57328321]
[1761924801593,0.67,189.11,189.07,18.79589917]
[1761924801793,0.67,189.11,189.07,18.51157603]
[1761924802388,3.95400024,189.1,189.05,47.0]
[1761924802700,5.34322103,189.06,189.02,5.29037813]
[1761924802897,5.34322103,189.04,189.02,5.29037813]
[1761924803282,6.01322103,189.04,189.0,10.07315083]
[1761924803491,5.28766948,189.12,189.0,16.10637186]
[1761924803689,0.67,189.06,189.0,15.82204872]
[1761924803888,5.34322103,189.05,189.0,10.47882769]
[1761924804089,5.34322103,189.04,189.0,9.78882769]
[1761924804505,6.01322103,189.04,189.0,9.78882769]
[1761924804702,5.34322103,189.05,189.0,9.78882769]
[1761924805198,6.01322103,189.05,189.01,18.51753874]
[1761924805398,6.01322103,189.05,189.01,5.29072535]
[1761924805596,6.01322103,189.04,189.01,5.29072535]
[1761924805801,5.34322103,189.03,189.01,5.29072535]
[1761924805977,0.67,189.03,189.01,5.29072535]
[1761924807000,0.67,189.03,189.0,5.29095593]
[1761924807200,5.34322103,189.02,189.0,5.29095593]
[1761924807395,2.10026983,189.02,189.0,5.29095593]
[1761924807706,0.67,189.03,189.0,5.29095593]
[1761924807707,2.10026983,189.03,189.0,5.29095593]
[1761924807908,5.28882969,189.08,189.0,5.29095593]
[1761924808098,0.67,189.05,189.0,5.29095593]
[1761924808302,2.10026983,189.03,189.0,5.29095593]
[1761924808905,2.77026983,189.03,189.0,5.29095593]
[1761924809104,2.77026983,189.03,188.99,18.5194198]
[1761924809491,6.01728466,189.03,188.99,18.5194198]
[1761924811009,5.34728466,189.03,188.99,19.1894198]
[1761924811204,6.01728466,189.03,188.99,19.1894198]
[1761924811708,5.34728466,189.0,188.91,50.1]
[1761924812006,5.34728466,188.93,188.91,0.1]
[1761924812222,20.592,188.91,188.78,15.90625911]
[1761924812380,20.592,188.91,188.7,30.0687863]
[1761924812381,9.78882769,188.9,188.81,5.39611195]
[1761924812580,20.592,188.88,188.81,0.1]
[1761924812918,5.34728466,188.86,188.81,0.77]
[1761924813214,5.34728466,188.85,188.81,6.06628936]
[1761924813421,5.34728466,188.84,188.81,6.06628936]
[1761924813581,26.45640621,188.88,188.81,6.06628936]
[1761924813582,5.34728466,188.82,188.81,0.77]
[1761924813908,5.34728466,188.82,188.81,6.06632964]
[1761924814203,20.592,188.84,188.81,0.1]
[1761924814408,5.34728466,188.82,188.81,0.1]
[1761924814708,5.34728466,188.82,188.81,0.77]
[1761924814909,5.34728466,188.82,188.81,6.0662223]
[1761924815109,5.34728466,188.82,188.81,5.3962223]
[1761924815978,5.34728466,188.82,188.81,0.1]
[1761924816178,5.34728466,188.82,188.81,5.39632964]
[1761924817009,5.34728466,188.82,188.81,0.1]
[1761924817179,5.91728466,188.82,188.81,0.1]
[1761924817382,5.91728466,188.82,188.74,0.67]
[1761924817383,20.592,188.79,188.74,0.67]
[1761924817688,5.34728466,188.75,188.74,0.67]
[1761924818306,0.57,188.81,188.74,0.67]
[1761924818693,5.34728466,188.76,188.74,0.67]
[1761924819410,5.34728466,188.75,188.74,5.96829394]
[1761924819709,9.78882769,188.85,188.74,5.96829394]
[1761924819710,5.34728466,188.76,188.74,5.96829394]
[1761924819907,5.34728466,188.77,188.74,19.21402881]
[1761924820284,5.34728466,188.76,188.74,19.21402881]
[1761924820900,5.34728466,188.76,188.74,18.54402881]
[1761924821210,5.34728466,188.77,188.75,0.67]
[1761924821383,5.34728466,188.77,188.76,5.29773257]
[1761924821891,5.34728466,188.78,188.76,5.29773257]
[1761924822803,5.34728466,188.78,188.76,5.96773257]
[1761924824013,5.34728466,188.78,188.76,19.21206399]
[1761924824210,5.34728466,188.79,188.76,19.21206399]
[1761924824585,5.34728466,188.79,188.77,0.67]
[1761924825209,5.34728466,188.79,188.76,18.54206399]
[1761924825408,5.34728466,188.79,188.76,19.21206399]
[1761924826400,5.34728466,188.79,188.77,0.67]
[1761924826620,5.34728466,188.79,188.76,18.54206399]
[1761924826816,5.34728466,188.79,188.76,19.21206399]
[1761924827426,21.162,188.83,188.77,0.67]
[1761924827716,5.34728466,188.78,188.72,0.67]
[1761924827889,5.34728466,188.74,188.72,0.67]
[1761924828094,5.34728466,188.74,188.73,5.29857468]
[1761924828299,33.8314217,188.83,188.73,18.54501138]
[1761924828300,0.57,188.83,188.73,18.54501138]
[1761924828482,20.592,188.84,188.74,0.95432314]
[1761924828685,20.592,188.84,188.75,9.78882769]
[1761924828686,5.34728466,188.8,188.75,9.78882769]
[1761924828923,0.57,188.86,188.75,9.78882769]
[1761924828924,5.34728466,188.82,188.76,5.6316078]
[1761924829089,5.34728466,188.82,188.77,10.45882769]
[1761924829512,5.34728466,188.82,188.78,0.67]
[1761924829709,0.57,188.86,188.78,0.67]
[1761924830101,5.34728466,188.82,188.79,18.53911753]
[1761924830491,5.34728466,188.82,188.8,0.67]
[1761924831693,0.57,188.86,188.8,0.67]
[1761924832009,5.34728466,188.83,188.81,5.29632964]
[1761924832503,5.34728466,188.83,188.81,5.96632964]
[1761924832811,5.34728466,188.82,188.81,5.29632964]
[1761924833392,2.10498514,188.82,188.81,5.29632964]
[1761924834216,2.10498514,188.82,188.79,18.53911753]
[1761924834413,2.10498514,188.81,188.79,18.53911753]
[1761924834619,2.10498514,188.81,188.8,0.67]
[1761924835131,20.592,188.87,188.8,0.67]
[1761924835422,2.10498514,188.86,188.81,9.78882769]
[1761924835624,0.57,188.9,188.82,0.67]
[1761924835824,0.57,188.9,188.82,0.95432314]
[1761924836032,2.10498514,188.86,188.82,0.95432314]
[1761924836331,2.10498514,188.86,188.84,5.29548824]
[1761924836510,2.10498514,188.85,188.84,5.29548824]
[1761924837234,2.10498514,188.85,188.78,13.24224923]
[1761924837397,2.10498514,188.82,188.78,13.96224923]
[1761924837599,2.10498514,188.8,188.78,13.96224923]
[1761924837815,2.10498514,188.79,188.76,5.29768282]
[1761924838101,2.10498514,188.77,188.75,5.29793538]
[1761924838307,2.10498514,188.76,188.75,5.29793538]
[1761924838506,2.10498514,188.76,188.74,0.72]
[1761924838507,2.10498514,188.76,188.74,5.29826312]
[1761924838699,2.10498514,188.76,188.73,5.2985186]
[1761924838911,2.10498514,188.76,188.73,6.0185186]
[1761924839420,2.10498514,188.76,188.74,0.72]
[1761924840713,2.10498514,188.76,188.74,6.01819764]
[1761924840906,2.10498514,188.77,188.74,6.01819764]
[1761924841114,2.10498514,188.77,188.74,19.26393251]
[1761924841294,0.57,188.8,188.74,19.26393251]
[1761924841497,2.10498514,188.76,188.72,0.72]
[1761924841726,2.10498514,188.77,188.73,0.72]
[1761924842026,2.10498514,188.76,188.73,0.72]
[1761924842532,2.10498514,188.76,188.74,5.29829394]
[1761924842742,2.10498514,188.76,188.75,0.72]
[1761924843057,13.71599637,188.82,188.75,0.72]
[1761924843219,2.10498514,188.76,188.75,0.72]
[1761924843418,2.10498514,188.76,188.74,18.54402881]
[1761924843419,2.10498514,188.76,188.74,5.29829394]
[1761924843722,0.57,188.81,188.75,0.72]
[1761924843922,2.10498514,188.76,188.74,18.54402881]
[1761924844220,2.10498514,188.75,188.73,5.29851539]
[1761924844419,2.10498514,188.74,188.73,5.29851539]
[1761924844618,2.10498514,188.74,188.71,18.54655547]
[1761924844824,2.10498514,188.73,188.71,19.26655547]
[1761924845046,20.592,188.79,188.71,18.54655547]
[1761924845222,2.10498514,188.75,188.72,0.72]
[1761924845423,2.10498514,188.74,188.72,0.72]
[1761924845843,2.10498514,188.75,188.72,0.72]
[1761924846041,2.10498514,188.76,188.72,0.72]
[1761924846227,2.10498514,188.77,188.72,0.72]
[1761924846433,2.10498514,188.77,188.72,1.00432314]
[1761924846743,2.10498514,188.77,188.73,18.54501138]
[1761924847045,2.10498514,188.77,188.73,19.26501138]
[1761924847238,2.10498514,188.81,188.76,10.07315083]
[1761924847430,2.10498514,188.82,188.76,12.17813597]
[1761924847635,2.10498514,188.81,188.77,0.72]
[1761924847947,2.10498514,188.82,188.77,0.72]
[1761924848332,0.57,188.86,188.77,2.82498514]
[1761924848645,2.10498514,188.88,188.82,2.10498514]
[1761924848858,0.57,188.89,188.81,2.24714671]
[1761924849043,2.10498514,188.86,188.81,2.96714671]
[1761924849242,2.10498514,188.86,188.82,0.72]
[1761924849549,5.35729316,188.86,188.82,0.72]
[1761924849923,5.35729316,188.86,188.83,5.29576868]
[1761924851430,5.35729316,188.85,188.83,5.29576868]
[1761924851625,0.57,188.89,188.83,5.29576868]
[1761924851833,5.35729316,188.86,188.84,0.72]
[1761924852032,5.35729316,188.86,188.85,5.29520783]
[1761924852251,0.57,188.94,188.85,29.32637825]
[1761924852476,5.35729316,188.92,188.87,0.28432314]
[1761924852634,5.35729316,188.89,188.87,1.00432314]
[1761924852822,0.57,188.94,188.85,18.53322742]
[1761924852823,5.35729316,188.88,188.85,5.29520783]
[1761924853029,5.35729316,188.86,188.84,5.29544167]
[1761924853245,0.57,188.93,188.84,5.57976481]
[1761924853448,8.13947933,188.9,188.85,10.79315083]
[1761924853635,8.13947933,188.91,188.85,10.79315083]
[1761924853835,8.13947933,188.9,188.86,0.72]
[1761924854044,8.13947933,188.89,188.87,5.29464711]
[1761924854559,8.13947933,188.89,188.87,6.01464711]
[1761924854757,8.13947933,188.89,188.88,0.72]
[1761924855260,8.13947933,188.9,188.89,5.2940865]
[1761924856239,12.08885026,188.9,188.89,5.2940865]
[1761924856555,3.94937093,188.9,188.89,5.2940865]
[1761924857058,3.94937093,188.9,188.89,6.0140865]
[1761924857658,3.94937093,188.9,188.88,0.72]
[1761924857861,8.13947933,188.91,188.87,0.72]
[1761924858150,3.95027886,188.9,188.87,0.72]
[1761924858360,8.13947933,188.91,188.87,0.72]
[1761924858563,3.94904179,188.9,188.87,0.72]
[1761924858763,8.13947933,188.91,188.88,5.29436679]
[1761924858947,8.13947933,188.92,188.88,18.53028377]
[1761924859157,3.94904075,188.91,188.89,0.7]
[1761924859458,8.13947933,188.92,188.89,0.7]
[1761924859659,3.94787437,188.91,188.89,0.7]
[1761924859955,8.13947933,188.91,188.89,0.7]
[1761924860158,5.86241833,188.95,188.89,0.7]
[1761924860456,8.13947933,188.91,188.89,0.7]
[1761924860973,8.13947933,188.91,188.9,5.29380624]
[1761924861255,8.13947933,188.91,188.89,5.29405423]
[1761924861567,8.13947933,188.92,188.9,0.7]
[1761924861862,20.592,188.96,188.9,0.7]
[1761924862050,8.13947933,188.94,188.9,0.7]
[1761924862247,8.13947933,188.96,188.9,9.12380247]
[1761924862566,8.13947933,188.97,188.91,8.13947933]
[1761924862738,26.6527614,189.01,188.92,18.21263016]
[1761924862739,3.94356639,188.96,188.92,18.21263016]
[1761924862938,8.13947933,188.98,188.93,18.52537976]
[1761924863158,0.77,189.01,188.93,19.22537976]
[1761924863355,12.08035745,189.0,188.94,8.83947933]
[1761924863562,8.33947933,189.01,188.95,8.13947933]
[1761924863761,8.33947933,189.01,188.96,10.07315083]
[1761924863964,8.33947933,189.01,188.96,10.77315083]
[1761924864259,8.13947933,188.97,188.93,5.99296564]
[1761924864564,8.13947933,188.96,188.93,19.22537976]
[1761924864766,8.13947933,188.97,188.94,0.7]
[1761924864953,8.13947933,188.97,188.95,5.29240539]
[1761924865464,8.13947933,188.96,188.92,5.99324581]
[1761924865662,8.13947933,188.95,188.92,5.99324581]
[1761924866446,0.57,188.98,188.92,5.29324581]
[1761924866653,8.13947933,188.95,188.92,5.99324581]
[1761924867468,8.13947933,188.97,188.93,0.71]
[1761924868562,8.13947933,188.96,188.93,0.71]
[1761924868892,8.13947933,188.97,188.93,0.71]
[1761924869047,8.13947933,188.97,188.94,5.2926855]
[1761924869571,8.13947933,188.97,188.94,6.0026855]
[1761924870365,8.13947933,188.96,188.94,6.0026855]
[1761924870560,0.57,188.99,188.94,5.2926855]
[1761924870858,8.13947933,188.96,188.94,6.0026855]
[1761924871065,8.13947933,188.97,188.94,6.0026855]
[1761924871465,3.28357419,188.97,188.95,0.71]
[1761924871770,3.28357419,188.97,188.95,5.29214943]
[1761924872139,3.28357419,188.96,188.95,6.00214943]
[1761924873478,3.28357419,188.97,188.95,6.00214943]
[1761924873969,3.28357419,188.96,188.95,6.00214943]
[1761924874178,3.28357419,188.96,188.93,19.2344591]
[1761924874382,3.28357419,188.96,188.94,0.71]
[1761924875175,3.28357419,188.97,188.95,5.29240539]
[1761924875363,3.28357419,188.98,188.95,5.29240539]
[1761924875551,3.28357419,188.98,188.96,0.71]
[1761924876169,3.28357419,188.99,188.96,0.71]
[1761924877253,3.28357419,188.99,188.97,5.29184526]
[1761924877454,3.48357419,189.01,188.97,5.29184526]
[1761924877668,0.2,189.01,188.98,0.71]
[1761924877876,3.28357419,189.0,188.97,6.00184526]
[1761924878659,3.28357419,189.0,188.97,5.29184526]
[1761924879178,3.28357419,188.98,188.92,0.71]
[1761924879381,3.28357419,188.94,188.93,5.29296564]
[1761924879690,3.28357419,188.95,188.93,5.29296564]
[1761924879898,3.28357419,188.95,188.93,6.00296564]
[1761924880062,3.28357419,188.95,188.94,0.71]
[1761924880660,3.85357419,188.95,188.9,9.60943642]
[1761924880984,20.592,188.96,188.9,9.60943642]
[1761924880985,3.28357419,188.91,188.9,9.60943642]
[1761924881785,3.28357419,188.91,188.9,14.90324266]
[1761924881968,3.85357419,188.91,188.9,9.60943642]
[1761924882286,3.28357419,188.91,188.9,9.60943642]
[1761924883798,7.13714838,188.91,188.9,9.60943642]
[1761924884083,20.592,188.88,188.81,5.29630328]
[1761924884257,3.28357419,188.82,188.79,0.71]
[1761924884463,3.28357419,188.8,188.79,5.29686141]
[1761924884670,3.28357419,188.8,188.78,5.29711153]
[1761924884897,3.28357419,188.8,188.78,6.00711153]
[1761924885268,8.14558823,188.8,188.78,6.00711153]
[1761924885490,8.14558823,188.8,188.79,6.00689072]
[1761924886003,21.162,188.91,188.79,14.15247895]
[1761924886294,8.14558823,188.83,188.8,0.71]
[1761924886473,8.14558823,188.81,188.79,5.29689072]
[1761924886861,21.162,188.86,188.8,0.71]
[1761924887283,8.14558823,188.82,188.8,0.71]
[1761924887473,8.14558823,188.82,188.81,5.29632964]
[1761924888262,8.14558823,188.82,188.8,6.0065888]
[1761924888463,8.14558823,188.83,188.8,6.0065888]
[1761924889292,8.14558823,188.83,188.81,0.71]
[1761924889495,8.14558823,188.83,188.81,6.00611431]
[1761924890477,8.14558823,188.83,188.81,5.29611431]
[1761924890683,8.14558823,188.83,188.8,6.00661016]
[1761924891186,8.14558823,188.83,188.8,5.29661016]
[1761924891368,8.14558823,188.83,188.81,0.71]
[1761924892268,8.14558823,188.82,188.8,5.29661016]
[1761924892468,8.14558823,188.82,188.8,6.00661016]
[1761924892903,8.14558823,188.82,188.78,18.53992191]
[1761924893103,8.14558823,188.8,188.78,5.29717131]
[1761924893593,8.14558823,188.81,188.78,6.00717131]
[1761924893904,20.592,188.84,188.79,0.71]
[1761924894081,8.14558823,188.82,188.79,0.71]
[1761924894972,8.14558823,188.82,188.8,5.29661016]
[1761924895866,8.14558823,188.82,188.79,0.71]
[1761924896078,8.14558823,188.82,188.79,6.00675211]
[1761924898297,8.14558823,188.82,188.78,5.29717131]
[1761924898485,8.14558823,188.82,188.78,5.96717131]
[1761924898796,8.14558823,188.82,188.79,0.67]
[1761924898977,20.592,188.84,188.79,0.67]
[1761924899180,26.45671141,188.87,188.79,8.81558823]
[1761924899389,8.14558823,188.81,188.78,5.29717131]
[1761924899777,8.14558823,188.81,188.79,0.67]
[1761924900295,8.14558823,188.81,188.77,6.25177506]
[1761924900675,8.14558823,188.81,188.78,0.67]
[1761924901073,0.57,188.84,188.78,0.67]
[1761924901409,8.14558823,188.82,188.78,0.67]
[1761924901977,8.14558823,188.83,188.78,0.67]
[1761924902404,8.14558823,188.81,188.77,0.28432314]
[1761924902587,8.14558823,188.8,188.77,5.29718117]
[1761924902798,8.14558823,188.8,188.77,5.96718117]
[1761924903104,8.14558823,188.81,188.78,0.67]
[1761924903498,8.14558823,188.79,188.72,22.06211714]
[1761924903684,8.14558823,188.78,188.73,0.67]
[1761924903885,8.14558823,188.77,188.73,0.67]
[1761924904109,8.14558823,188.76,188.71,5.29913624]
[1761924904321,8.14558823,188.76,188.72,0.67]
[1761924904485,8.14558823,188.76,188.65,97.0]
[1761924904486,8.14558823,188.74,188.65,97.0]
[1761924904693,8.14558823,188.74,188.7,0.67]
[1761924905001,8.14558823,188.73,188.68,9.78882769]
[1761924905300,8.14558823,188.74,188.69,0.67]
[1761924905615,8.14558823,188.75,188.69,8.81558823]
[1761924905797,8.14558823,188.74,188.69,8.81558823]
[1761924906108,8.14558823,188.74,188.7,0.67]
[1761924906488,8.14558823,188.76,188.71,5.29913624]
[1761924906703,0.57,188.79,188.71,5.29913624]
[1761924906704,8.14558823,188.77,188.71,26.69256507]
[1761924906911,8.14558823,188.83,188.73,17.93441592]
[1761924907191,8.14558823,188.81,188.76,8.14558823]
[1761924907402,3.28914462,188.81,188.76,3.28914462]
[1761924907602,23.88114462,188.82,188.77,0.67]
[1761924907808,3.28914462,188.83,188.77,3.95914462]
[1761924908197,3.28914462,188.82,188.77,3.95914462]
[1761924908402,3.28914462,188.82,188.78,18.54009958]
[1761924908594,23.88114462,188.83,188.78,19.21009958]
[1761924908799,20.592,188.83,188.79,0.67]
[1761924909099,3.85914462,188.87,188.81,3.28914462]
[1761924909416,3.28914462,188.89,188.83,3.28914462]
[1761924909715,3.28914462,188.89,188.83,3.95914462]
[1761924910349,3.28914462,188.87,188.83,0.67]
[1761924910638,3.28914462,188.87,188.82,5.29604914]
[1761924910843,21.162,188.9,188.82,9.25519376]
[1761924911042,3.28914462,188.88,188.83,0.67]
[1761924911218,3.28914462,188.88,188.83,3.95914462]
[1761924911657,3.28914462,188.88,188.82,18.536172]
[1761924911658,3.28914462,188.86,188.82,18.536172]
[1761924911948,25.88586025,188.9,188.82,18.536172]
[1761924911949,3.28914462,188.88,188.83,0.67]
[1761924912341,20.592,188.9,188.83,3.95914462]
[1761924912514,3.28914462,188.89,188.84,5.29548824]
[1761924912719,20.592,188.89,188.84,5.29548824]
[1761924912944,3.28914462,188.88,188.84,5.29548824]
[1761924913118,3.28914462,188.88,188.84,18.53420885]
[1761924913313,3.28914462,188.89,188.84,18.53420885]
[1761924913551,0.57,188.88,188.84,18.53420885]
[1761924914047,0.57,188.88,188.84,5.29548824]
[1761924914048,3.85914462,188.88,188.84,5.29548824]
[1761924914441,3.85914462,188.88,188.83,18.53508696]
[1761924914819,20.592,188.9,188.84,3.95914462]
[1761924915021,3.85914462,188.91,188.85,0.67]
[1761924915239,3.28914462,188.9,188.83,19.20508696]
[1761924915443,2.10320632,188.9,188.84,2.10320632]
[1761924915751,2.67320632,188.9,188.84,2.10320632]
[1761924916144,2.67320632,188.9,188.84,2.77320632]
[1761924916332,2.10320632,188.9,188.84,2.77320632]
[1761924916840,2.10320632,188.9,188.85,18.53322742]
[1761924917232,2.10320632,188.9,188.85,19.20322742]
[1761924917432,20.592,188.91,188.85,19.20322742]
[1761924917433,22.69520632,188.91,188.85,21.30643374]
[1761924917638,2.67320632,188.94,188.88,2.10320632]
[1761924917838,2.10320632,188.93,188.87,2.10320632]
[1761924918356,2.10320632,188.92,188.87,2.10320632]
[1761924918545,2.10320632,188.91,188.86,2.10320632]
[1761924918730,2.67320632,188.91,188.86,2.10320632]
[1761924918924,2.67320632,188.91,188.87,5.29464711]
[1761924919145,2.10320632,188.91,188.87,5.29464711]
[1761924919450,2.10320632,188.92,188.87,6.00464711]
[1761924919649,21.162,188.93,188.87,5.29464711]
[1761924919845,2.10320632,188.92,188.87,5.29464711]
[1761924920037,2.10320632,188.92,188.87,7.39785343]
[1761924920363,23.26520632,188.93,188.88,0.71]
[1761924920736,0.57,188.92,188.87,20.6344712]
[1761924920931,2.67320632,188.92,188.87,5.29464711]
[1761924921132,0.57,188.92,188.87,5.29464711]
[1761924921338,2.67320632,188.92,188.87,6.00464711]
[1761924922054,20.592,188.93,188.87,6.00464711]
[1761924922262,2.10320632,188.92,188.87,6.00464711]
[1761924922565,21.162,188.93,188.87,8.10785343]
[1761924922566,23.26520632,188.93,188.87,8.10785343]
[1761924923352,22.69520632,188.93,188.87,20.6344712]
[1761924923552,22.69520632,188.93,188.88,0.71]
[1761924923743,2.10320632,188.92,188.87,5.29464711]
[1761924923945,2.10320632,188.92,188.87,6.00464711]
[1761924925363,2.10320632,188.92,188.87,5.29464711]
[1761924925554,2.10320632,188.92,188.88,5.29415378]
[1761924925757,2.10320632,188.92,188.88,6.00415378]
[1761924927073,21.162,188.93,188.88,6.00415378]
[1761924927377,2.10320632,188.92,188.88,0.71]
[1761924927551,22.69520632,188.89,188.8,0.68]
[1761924927731,20.592,188.89,188.81,9.78882769]
[1761924928048,2.10320632,188.85,188.81,9.78882769]
[1761924928238,2.10320632,188.85,188.81,0.68]
[1761924928439,2.10320632,188.85,188.82,0.68]
[1761924928641,2.10320632,188.85,188.83,5.29576868]
[1761924929342,2.10320632,188.84,188.82,5.29602442]
[1761924929543,2.10320632,188.85,188.82,5.29602442]
[1761924929744,2.10320632,188.85,188.82,5.97602442]
[1761924930261,2.10320632,188.85,188.83,0.68]
[1761924930437,2.10320632,188.86,188.83,0.68]
[1761924930833,2.10320632,188.86,188.84,5.29548824]
[1761924931060,2.10320632,188.85,188.81,5.97632964]
[1761924931455,0.57,188.87,188.82,0.68]
[1761924931664,2.10320632,188.83,188.8,5.29660642]
[1761924931850,2.10320632,188.81,188.75,9.78882769]